bitfinex-derivatives/quotes_SOLF0:USTF0_20250426
["timestamp","ask_amount","ask_price","bid_price","bid_amount"]
[1745641342476,6.6032,151.38,151.35,12.40921696]
[1745641345075,6.6032,151.38,151.35,5.80491696]
[1745641345677,6.6036,151.37,151.35,5.80491696]
[1745641345980,6.6032,151.38,151.35,5.80491696]
[1745641349382,5.80491696,151.4,151.35,5.80491696]
[1745641349584,6.6035,151.37,151.35,5.80491696]
[1745641349984,6.6033,151.38,151.35,5.80491696]
[1745641352888,6.6033,151.38,151.34,30.0647]
[1745641353088,6.6033,151.38,151.35,5.80491696]
[1745641353589,6.6035,151.37,151.35,5.80491696]
[1745641356983,6.6032,151.38,151.35,5.80491696]
[1745641359390,6.6035,151.37,151.35,5.80491696]
[1745641360191,6.6032,151.38,151.35,5.80491696]
[1745641362194,6.6032,151.38,151.36,5.80491696]
[1745641370195,6.6027,151.39,151.36,12.40871696]
[1745641371000,6.6032,151.38,151.36,5.80491696]
[1745641373105,6.6035,151.37,151.34,29.26491696]
[1745641373501,6.6035,151.37,151.34,35.86951696]
[1745641375299,6.6032,151.38,151.36,5.80491696]
[1745641377607,6.6027,151.39,151.36,12.40881696]
[1745641381510,6.6027,151.39,151.36,5.80491696]
[1745641384405,6.6027,151.39,151.36,12.40871696]
[1745641386111,6.6027,151.39,151.36,5.80491696]
[1745641386405,6.6031,151.38,151.34,29.26491696]
[1745641386607,5.80491696,151.4,151.34,29.26491696]
[1745641386911,6.6035,151.38,151.34,35.86951696]
[1745641387312,6.6037,151.37,151.34,35.86951696]
[1745641389616,6.6037,151.37,151.34,29.26491696]
[1745641389817,23.46,151.42,151.29,475.46]
[1745641389818,5.80491696,151.36,151.32,5.80491696]
[1745641390312,1.9394,151.41,151.31,23.46]
[1745641390313,5.80491696,151.34,151.31,23.46]
[1745641390512,5.80491696,151.34,151.3,5.80491696]
[1745641390707,6.6055,151.33,151.3,5.80491696]
[1745641391722,6.6057,151.32,151.3,5.80491696]
[1745641391921,5.80491696,151.34,151.3,5.80491696]
[1745641392223,6.606,151.32,151.3,5.80491696]
[1745641393719,6.6061,151.31,151.3,5.80491696]
[1745641393926,5.80491696,151.34,151.3,5.80491696]
[1745641394221,6.6061,151.32,151.3,5.80491696]
[1745641394426,5.80491696,151.34,151.29,23.46]
[1745641394721,6.6074,151.28,151.26,35.22461696]
[1745641395627,6.6071,151.29,151.26,35.22461696]
[1745641395826,5.80491696,151.3,151.26,35.22461696]
[1745641396827,6.6071,151.29,151.26,35.22461696]
[1745641397023,6.6071,151.29,151.26,29.4197]
[1745641397225,5.80491696,151.31,151.26,35.22461696]
[1745641397424,6.6067,151.3,151.26,35.22461696]
[1745641397725,6.6067,151.3,151.28,5.80491696]
[1745641398127,12.41121696,151.31,151.28,5.80491696]
[1745641398324,5.80491696,151.33,151.28,5.80491696]
[1745641398921,6.6064,151.31,151.28,12.41221696]
[1745641400631,6.6064,151.31,151.28,5.80491696]
[1745641401030,12.41131696,151.31,151.28,5.80491696]
[1745641402431,5.80491696,151.31,151.26,35.22461696]
[1745641402933,6.6075,151.28,151.26,29.4197]
[1745641403330,6.6075,151.28,151.26,5.9597]
[1745641403827,6.608,151.27,151.25,5.80491696]
[1745641404227,6.608,151.27,151.24,6.6091]
[1745641404429,6.608,151.27,151.24,12.41401696]
[1745641404930,6.6084,151.26,151.24,5.80491696]
[1745641405131,23.46,151.34,151.24,5.80491696]
[1745641405331,5.80491696,151.29,151.24,5.80491696]
[1745641405535,6.6077,151.28,151.24,12.41381696]
[1745641410232,6.6077,151.28,151.25,6.6086]
[1745641410427,6.6077,151.28,151.25,12.41351696]
[1745641413434,6.6079,151.27,151.25,5.80491696]
[1745641414734,6.6083,151.26,151.23,10.6382]
[1745641415236,6.6084,151.26,151.23,4.0287]
[1745641415436,6.6084,151.26,151.23,5.80491696]
[1745641416241,6.6084,151.26,151.23,12.41451696]
[1745641416934,6.6084,151.26,151.23,5.80491696]
[1745641417237,6.6088,151.25,151.22,12.41481696]
[1745641417536,6.6086,151.26,151.22,12.41481696]
[1745641418342,12.41291696,151.27,151.23,12.41441696]
[1745641418527,6.608,151.27,151.23,12.41441696]
[1745641419635,6.6084,151.26,151.23,6.6095]
[1745641419837,6.6084,151.26,151.23,12.41441696]
[1745641420940,6.608,151.27,151.23,12.41441696]
[1745641421135,12.41291696,151.27,151.23,12.41441696]
[1745641422142,6.6086,151.26,151.23,5.80491696]
[1745641423036,6.6086,151.26,151.23,12.41421696]
[1745641423945,6.608,151.27,151.24,6.6091]
[1745641425244,6.608,151.27,151.23,12.41441696]
[1745641427846,6.6084,151.26,151.23,12.41441696]
[1745641430647,5.80491696,151.29,151.24,6.6092]
[1745641430648,6.6081,151.27,151.24,6.6092]
[1745641430844,5.80491696,151.29,151.23,5.80491696]
[1745641431156,5.80491696,151.29,151.23,12.41431696]
[1745641431754,6.6086,151.26,151.23,5.80491696]
[1745641433454,6.608,151.27,151.23,12.41441696]
[1745641434350,5.80491696,151.29,151.23,12.41441696]
[1745641434955,6.6081,151.27,151.24,6.6091]
[1745641437055,6.6081,151.27,151.23,12.41441696]
[1745641439660,6.6084,151.26,151.23,12.41441696]
[1745641441161,6.6084,151.26,151.23,6.6095]
[1745641442164,12.41301696,151.27,151.23,6.6095]
[1745641442662,5.80491696,151.27,151.23,6.6095]
[1745641443461,6.6086,151.26,151.23,6.6095]
[1745641443767,5.80491696,151.27,151.23,6.6095]
[1745641443967,6.6084,151.26,151.23,6.6095]
[1745641444668,6.608,151.27,151.23,6.6095]
[1745641445271,6.6083,151.26,151.23,6.6095]
[1745641446869,6.6083,151.26,151.22,12.41481696]
[1745641447271,6.6083,151.26,151.22,5.80491696]
[1745641449570,6.6088,151.25,151.22,5.80491696]
[1745641450168,5.80491696,151.27,151.22,5.80491696]
[1745641450369,6.6096,151.24,151.22,5.80491696]
[1745641450567,5.80491696,151.27,151.22,5.80491696]
[1745641451169,5.80491696,151.27,151.21,29.26491696]
[1745641451668,6.6097,151.23,151.21,29.26491696]
[1745641452272,6.6093,151.24,151.21,29.26491696]
[1745641452564,5.80491696,151.25,151.21,29.26491696]
[1745641453570,6.6101,151.22,151.21,29.26491696]
[1745641454169,6.6097,151.23,151.21,29.26491696]
[1745641454766,6.6101,151.22,151.21,29.26491696]
[1745641455572,6.6098,151.23,151.21,29.26491696]
[1745641457269,6.6093,151.24,151.21,29.26491696]
[1745641457571,5.80491696,151.25,151.21,29.26491696]
[1745641457965,6.6093,151.24,151.21,29.26491696]
[1745641458274,5.80491696,151.25,151.21,29.26491696]
[1745641458473,6.6097,151.23,151.21,29.26491696]
[1745641459973,6.6093,151.24,151.21,29.26491696]
[1745641460271,5.80491696,151.25,151.21,29.26491696]
[1745641460468,6.6099,151.23,151.21,23.46]
[1745641463075,6.6093,151.24,151.21,30.0704]
[1745641463576,6.6093,151.24,151.21,23.46]
[1745641464274,6.6098,151.23,151.21,23.46]
[1745641464976,6.6093,151.24,151.21,23.46]
[1745641465174,5.80491696,151.26,151.21,23.46]
[1745641465574,6.6093,151.24,151.21,23.46]
[1745641466478,6.6089,151.25,151.21,35.87541696]
[1745641466679,6.6089,151.25,151.22,5.80491696]
[1745641467582,12.41331696,151.26,151.22,12.41491696]
[1745641467882,6.6084,151.26,151.22,12.41491696]
[1745641469678,6.6088,151.25,151.22,12.41491696]
[1745641470378,6.6093,151.24,151.22,5.80491696]
[1745641471979,6.6096,151.23,151.21,23.46]
[1745641473182,6.6101,151.22,151.21,23.46]
[1745641473682,5.80491696,151.22,151.18,5.80491696]
[1745641474480,5.80491696,151.22,151.17,23.46]
[1745641474682,6.6116,151.19,151.17,23.46]
[1745641474880,5.80491696,151.22,151.17,23.46]
[1745641475383,5.80491696,151.2,151.16,9.84671696]
[1745641475782,6.6121,151.18,151.16,9.84671696]
[1745641475979,5.80491696,151.2,151.16,9.84671696]
[1745641476481,6.6115,151.19,151.16,9.84671696]
[1745641476885,5.80491696,151.2,151.16,9.84671696]
[1745641477086,5.80491696,151.21,151.16,9.84671696]
[1745641477584,6.6106,151.21,151.17,5.80491696]
[1745641478785,6.6109,151.2,151.17,12.41701696]
[1745641484783,6.6109,151.2,151.17,5.80491696]
[1745641485280,12.41581696,151.2,151.16,14.39541696]
[1745641485582,6.6114,151.19,151.16,14.39541696]
[1745641485783,6.6114,151.19,151.16,7.78291696]
[1745641486185,12.41601696,151.2,151.16,7.78291696]
[1745641486382,12.41601696,151.2,151.16,14.39531696]
[1745641488387,12.41561696,151.21,151.17,12.41671696]
[1745641488683,6.6107,151.21,151.18,5.80491696]
[1745641488987,6.6109,151.2,151.18,5.80491696]
[1745641489287,5.80491696,151.21,151.17,5.80491696]
[1745641489482,6.6112,151.2,151.16,14.39541696]
[1745641490588,6.6117,151.19,151.15,9.66411696]
[1745641490978,6.6117,151.19,151.15,16.27691696]
[1745641491787,6.6117,151.19,151.16,12.41761696]
[1745641492088,6.6117,151.19,151.16,5.80491696]
[1745641498890,6.6117,151.19,151.04,13.2358]
[1745641498891,5.80491696,151.17,151.0,358.0]
[1745641499088,5.80491696,151.15,151.1,5.80491696]
[1745641499390,5.80491696,151.14,151.09,7.79541696]
[1745641499582,5.80491696,151.13,151.09,7.79541696]
[1745641500286,6.6147,151.12,151.09,7.79541696]
[1745641500491,23.46,151.15,151.11,5.80491696]
[1745641500691,5.80491696,151.16,151.11,5.80491696]
[1745641500894,6.6138,151.14,151.1,5.80491696]
[1745641501083,12.41871696,151.14,151.1,5.80491696]
[1745641502192,5.80491696,151.13,151.08,7.86841696]
[1745641502689,6.6144,151.12,151.08,7.86841696]
[1745641502892,5.80491696,151.11,151.07,29.26491696]
[1745641503086,12.42011696,151.11,151.06,12.42171696]
[1745641503283,5.80491696,151.1,151.06,5.80491696]
[1745641503489,23.46,151.14,151.06,5.80491696]
[1745641503490,5.80491696,151.11,151.06,5.80491696]
[1745641503692,5.80491696,151.11,151.04,25.3461]
[1745641503693,5.80491696,151.11,151.07,5.80491696]
[1745641503998,5.80491696,151.11,151.07,12.42131696]
[1745641505304,12.41981696,151.11,151.07,5.80491696]
[1745641505501,5.80491696,151.11,151.07,5.80491696]
[1745641506702,5.80491696,151.11,151.08,6.616]
[1745641509095,30.0941,151.13,151.1,5.80491696]
[1745641511208,35.89901696,151.13,151.09,12.42061696]
[1745641512311,6.6145,151.12,151.09,12.42061696]
[1745641513308,6.6145,151.12,151.09,5.80491696]
[1745641513609,6.6149,151.11,151.08,12.42101696]
[1745641514408,6.6156,151.1,151.07,12.42131696]
[1745641514610,6.6156,151.1,151.07,5.80491696]
[1745641514910,6.6156,151.1,151.06,5.80491696]
[1745641515112,5.80491696,151.09,151.05,5.80491696]
[1745641515410,5.80491696,151.06,151.02,6.16284512]
[1745641515804,5.80491696,151.06,151.03,6.6181]
[1745641516108,5.80491696,151.06,151.02,6.16284512]
[1745641516409,12.42201696,151.06,151.02,6.16284512]
[1745641517210,12.42201696,151.06,151.02,12.78164512]
[1745641517709,5.80491696,151.05,151.02,0.35792816]
[1745641517912,5.80491696,151.04,151.02,0.35792816]
[1745641518112,12.42311696,151.04,151.02,0.35792816]
[1745641518408,5.80491696,151.04,151.02,0.35792816]
[1745641519810,12.42291696,151.04,151.02,0.35792816]
[1745641520413,5.80491696,151.03,150.97,5.80491696]
[1745641520712,5.80491696,151.02,150.97,12.42551696]
[1745641521012,5.80491696,151.02,150.97,5.80491696]
[1745641521206,5.80491696,150.99,150.93,3.9566]
[1745641521407,5.80491696,150.98,150.92,23.48]
[1745641521603,12.42561696,150.98,150.94,5.80491696]
[1745641521909,23.48,150.99,150.95,5.80491696]
[1745641522214,30.1004,150.99,150.95,5.80491696]
[1745641522511,23.48,150.99,150.95,5.80491696]
[1745641522915,23.48,150.99,150.96,5.80491696]
[1745641523915,23.48,151.0,150.97,5.80491696]
[1745641524114,23.48,151.0,150.98,5.80491696]
[1745641524714,23.48,151.0,150.97,5.80491696]
[1745641525224,23.48,151.0,150.96,5.80491696]
[1745641525714,23.48,151.0,150.99,6.6201]
[1745641526211,23.48,151.0,150.98,5.80491696]
[1745641526412,23.48,151.0,150.98,12.42531696]
[1745641528714,23.48,151.0,150.99,6.6201]
[1745641528912,29.28491696,151.03,150.98,5.80491696]
[1745641529612,35.90331696,151.03,150.99,6.6201]
[1745641529812,29.28491696,151.03,150.99,6.6201]
[1745641530216,29.28491696,151.03,150.99,12.42501696]
[1745641530415,29.28491696,151.03,151.0,6.6195]
[1745641531612,35.90331696,151.03,150.99,12.42491696]
[1745641531916,35.90331696,151.03,150.99,6.62]
[1745641535815,35.90331696,151.03,150.99,12.42491696]
[1745641536820,5.80491696,151.02,150.99,12.42491696]
[1745641537018,5.80491696,151.02,150.99,6.62]
[1745641539220,5.80491696,151.02,151.0,6.6196]
[1745641540020,5.80491696,151.02,150.99,6.6199]
[1745641540520,5.80491696,151.02,150.98,5.80491696]
[1745641540718,5.80491696,151.05,150.96,6.0852]
[1745641540920,476.38,151.1,151.04,5.80491696]
[1745641540921,5.80491696,151.1,151.04,5.80491696]
[1745641541121,29.28491696,151.11,151.06,5.80491696]
[1745641541321,6.6156,151.1,151.07,5.80491696]
[1745641541923,23.48,151.12,151.08,5.80491696]
[1745641542122,23.48,151.12,151.09,5.80491696]
[1745641542419,23.48,151.12,151.08,5.80491696]
[1745641542612,30.0947,151.12,151.08,5.80491696]
[1745641542813,30.0947,151.12,151.04,5.9866]
[1745641543020,30.0947,151.12,151.08,12.42081696]
[1745641543321,30.0947,151.12,151.08,5.80491696]
[1745641543520,23.48,151.12,151.09,6.6157]
[1745641543816,23.48,151.12,151.08,5.80491696]
[1745641544017,23.48,151.12,151.09,5.80491696]
[1745641544219,23.48,151.12,151.1,5.80491696]
[1745641544424,91.86275711,151.15,151.1,5.80491696]
[1745641544625,98.47615711,151.15,151.11,6.6146]
[1745641544825,5.80491696,151.14,151.11,6.6146]
[1745641545924,5.80491696,151.14,151.12,6.6143]
[1745641546422,35.89831696,151.15,151.12,6.6143]
[1745641546925,35.89831696,151.15,151.11,6.6147]
[1745641547127,35.89831696,151.15,151.11,5.80491696]
[1745641547128,29.28491696,151.15,151.11,5.80491696]
[1745641547628,29.28491696,151.15,151.12,6.6143]
[1745641547826,29.28491696,151.15,151.11,5.80491696]
[1745641548024,5.80491696,151.13,151.09,5.80491696]
[1745641548220,5.80491696,151.12,151.1,6.615]
[1745641548526,5.80491696,151.13,151.1,6.615]
[1745641549327,5.80491696,151.13,151.11,6.6149]
[1745641549525,5.80491696,151.14,151.11,6.6149]
[1745641549726,35.89811696,151.15,151.11,6.6149]
[1745641550229,35.89811696,151.15,151.11,12.41981696]
[1745641550631,6.6137,151.14,151.11,5.80491696]
[1745641550831,29.28491696,151.15,151.1,5.80491696]
[1745641551125,6.6141,151.13,151.1,5.80491696]
[1745641551330,29.28491696,151.15,151.1,12.42021696]
[1745641551722,6.614,151.13,151.1,5.80491696]
[1745641555132,6.614,151.13,151.1,12.42021696]
[1745641555329,6.6137,151.14,151.1,12.42021696]
[1745641558637,6.6137,151.14,151.11,6.6147]
[1745641558830,23.48,151.15,151.11,12.41961696]
[1745641559035,23.48,151.15,151.12,5.80491696]
[1745641559335,23.48,151.15,151.11,5.80491696]
[1745641560243,6.6143,151.13,151.11,5.80491696]
[1745641560438,6.6143,151.13,151.1,5.80491696]
[1745641561336,6.6143,151.13,151.09,6.6156]
[1745641561540,5.80491696,151.12,151.04,29.4466]
[1745641561841,5.80491696,151.12,151.06,5.80491696]
[1745641562037,6.615,151.11,151.06,12.42161696]
[1745641562239,6.615,151.11,151.06,5.80491696]
[1745641562537,6.615,151.11,151.07,6.6165]
[1745641563139,6.615,151.11,151.08,5.80491696]
[1745641564240,6.6154,151.1,151.07,6.6165]
[1745641564544,6.6154,151.1,151.08,5.80491696]
[1745641565344,6.6149,151.11,151.08,5.80491696]
[1745641565544,5.80491696,151.13,151.08,12.42101696]
[1745641565839,7.70871696,151.14,151.09,5.80491696]
[1745641566038,6.6147,151.12,151.09,5.80491696]
[1745641566343,7.70871696,151.14,151.09,5.80491696]
[1745641567334,6.6149,151.11,151.09,5.80491696]
[1745641568145,6.6156,151.1,151.08,5.80491696]
[1745641568443,5.80491696,151.13,151.08,5.80491696]
[1745641569042,6.6156,151.1,151.08,5.80491696]
[1745641571042,5.80491696,151.13,151.08,5.80491696]
[1745641571043,6.615,151.11,151.08,5.80491696]
[1745641571444,5.80491696,151.13,151.08,5.80491696]
[1745641571643,6.6157,151.1,151.08,5.80491696]
[1745641571945,6.6157,151.1,151.07,5.80491696]
[1745641572334,6.6158,151.09,151.07,5.80491696]
[1745641572843,6.6154,151.1,151.07,5.80491696]
[1745641574843,6.6158,151.09,151.07,5.80491696]
[1745641575844,5.80491696,151.12,151.07,5.80491696]
[1745641576045,29.26491696,151.11,151.06,5.80491696]
[1745641576343,29.26491696,151.11,151.07,5.80491696]
[1745641576543,29.26491696,151.11,151.06,5.80491696]
[1745641577747,6.6161,151.09,151.06,5.80491696]
[1745641578445,6.6153,151.1,151.06,5.80491696]
[1745641579045,6.6153,151.1,151.06,12.42171696]
[1745641579445,30.075,151.11,151.09,5.80491696]
[1745641579649,23.46,151.11,151.09,5.80491696]
[1745641581245,6.6153,151.1,151.09,5.80491696]
[1745641582748,30.075,151.11,151.09,5.80491696]
[1745641583447,6.6153,151.1,151.09,5.80491696]
[1745641584444,30.075,151.11,151.09,5.80491696]
[1745641584950,23.46,151.11,151.09,5.80491696]
[1745641585354,6.6153,151.1,151.08,5.80491696]
[1745641585950,29.26491696,151.11,151.08,5.80491696]
[1745641586353,6.6153,151.1,151.08,5.80491696]
[1745641587553,6.6157,151.09,151.08,5.80491696]
[1745641588555,6.6155,151.1,151.08,5.80491696]
[1745641590955,6.6157,151.09,151.08,5.80491696]
[1745641591459,6.6154,151.1,151.08,5.80491696]
[1745641594163,6.6157,151.09,151.08,5.80491696]
[1745641595564,6.6155,151.1,151.08,5.80491696]
[1745641596065,6.6157,151.09,151.08,5.80491696]
[1745641596568,23.46,151.11,151.08,5.80491696]
[1745641596767,6.6156,151.1,151.08,5.80491696]
[1745641596963,23.46,151.11,151.08,5.80491696]
[1745641597165,23.46,151.13,151.1,5.80491696]
[1745641597464,6.6144,151.12,151.11,5.80491696]
[1745641597766,6.615,151.11,151.1,5.80491696]
[1745641598663,6.6156,151.1,151.08,5.80491696]
[1745641599066,6.6157,151.09,151.08,5.80491696]
[1745641600065,29.26491696,151.13,151.04,29.4466]
[1745641600368,6.6163,151.08,151.07,5.80491696]
[1745641600668,6.6163,151.08,151.06,5.80491696]
[1745641601064,6.6166,151.07,151.06,5.80491696]
[1745641601263,5.80491696,151.09,151.04,29.4466]
[1745641601564,5.80491696,151.09,151.05,5.80491696]
[1745641601764,23.46,151.13,151.05,5.80491696]
[1745641601969,5.80491696,151.1,151.05,5.80491696]
[1745641602369,6.6163,151.08,151.05,5.80491696]
[1745641603468,6.616,151.09,151.06,5.80491696]
[1745641603669,5.80491696,151.11,151.06,5.80491696]
[1745641604266,6.6159,151.09,151.06,5.80491696]
[1745641604468,5.80491696,151.12,151.07,5.80491696]
[1745641604668,5.80491696,151.12,151.06,6.617]
[1745641604669,5.80491696,151.12,151.08,5.80491696]
[1745641604970,6.6157,151.09,151.08,5.80491696]
[1745641606269,5.80491696,151.14,151.08,5.80491696]
[1745641606465,23.46,151.13,151.1,5.80491696]
[1745641606970,6.6147,151.12,151.1,5.80491696]
[1745641608972,6.6149,151.11,151.1,5.80491696]
[1745641609177,23.46,151.13,151.1,5.80491696]
[1745641609675,6.6147,151.12,151.1,5.80491696]
[1745641609975,6.6147,151.12,151.11,5.80491696]
[1745641610468,6.6149,151.11,151.1,5.80491696]
[1745641610674,6.6149,151.11,151.09,5.80491696]
[1745641612277,6.6146,151.12,151.1,5.80491696]
[1745641613778,6.6149,151.11,151.1,5.80491696]
[1745641614276,23.46,151.13,151.1,5.80491696]
[1745641614775,6.6147,151.12,151.1,5.80491696]
[1745641615375,6.6147,151.12,151.09,5.80491696]
[1745641615574,6.6147,151.12,151.09,12.42061696]
[1745641616883,30.0741,151.13,151.1,5.80491696]
[1745641617080,23.46,151.13,151.1,5.80491696]
[1745641617579,6.6147,151.12,151.1,5.80491696]
[1745641617977,5.80491696,151.12,151.04,29.4466]
[1745641618177,6.6161,151.09,151.05,12.42231696]
[1745641618477,5.80491696,151.1,151.05,12.42231696]
[1745641618783,6.6163,151.08,151.05,5.80491696]
[1745641619478,6.6159,151.09,151.05,12.42231696]
[1745641619880,6.6159,151.09,151.06,6.617]
[1745641620082,6.6154,151.1,151.07,5.80491696]
[1745641620982,6.6154,151.1,151.07,12.42151696]
[1745641621185,5.80491696,151.12,151.08,5.80491696]
[1745641621581,6.615,151.11,151.08,5.80491696]
[1745641622981,23.46,151.13,151.1,5.80491696]
[1745641623486,6.6147,151.12,151.1,5.80491696]
[1745641626085,6.6149,151.11,151.1,5.80491696]
[1745641626279,6.6149,151.11,151.08,12.42091696]
[1745641626983,6.6156,151.1,151.08,5.80491696]
[1745641627185,5.80491696,151.12,151.08,5.80491696]
[1745641627484,6.615,151.11,151.08,5.80491696]
[1745641627783,5.80491696,151.12,151.08,5.80491696]
[1745641628282,6.615,151.11,151.08,5.80491696]
[1745641629184,6.6154,151.1,151.08,5.80491696]
[1745641629482,5.80491696,151.12,151.08,5.80491696]
[1745641629783,6.6151,151.11,151.08,5.80491696]
[1745641632187,6.6155,151.1,151.08,5.80491696]
[1745641632487,5.80491696,151.1,151.06,12.42191696]
[1745641632787,6.616,151.09,151.06,5.80491696]
[1745641634086,5.80491696,151.1,151.06,5.80491696]
[1745641634285,5.80491696,151.1,151.04,35.88271696]
[1745641634485,5.80491696,151.08,151.04,5.80491696]
[1745641634887,5.80491696,151.08,151.03,5.80491696]
[1745641635488,6.6173,151.06,151.03,5.80491696]
[1745641636783,5.80491696,151.08,151.05,5.80491696]
[1745641636986,23.46,151.09,151.05,5.80491696]
[1745641637288,6.6162,151.08,151.05,12.42241696]
[1745641638287,6.6162,151.08,151.05,5.80491696]
[1745641639991,30.0759,151.09,151.05,12.42231696]
[1745641640191,23.46,151.09,151.07,5.80491696]
[1745641640394,31.31161696,151.12,151.07,5.80491696]
[1745641640593,6.6155,151.1,151.07,5.80491696]
[1745641641493,6.6157,151.09,151.07,5.80491696]
[1745641643890,6.6154,151.1,151.07,5.80491696]
[1745641645093,6.6162,151.08,151.05,5.80491696]
[1745641645394,5.80491696,151.1,151.05,5.80491696]
[1745641645595,25.5067,151.12,151.05,5.80491696]
[1745641645794,6.6165,151.08,151.05,5.80491696]
[1745641645989,5.80491696,151.09,151.05,5.80491696]
[1745641646696,6.6168,151.07,151.03,6.6182]
[1745641646994,6.6168,151.07,151.04,5.80491696]
[1745641647195,5.80491696,151.09,151.04,5.80491696]
[1745641647497,6.617,151.07,151.04,5.80491696]
[1745641648197,6.6172,151.06,151.04,5.80491696]
[1745641649492,5.80491696,151.06,151.02,5.80491696]
[1745641650497,6.6182,151.04,151.02,5.80491696]
[1745641651692,6.6184,151.03,151.01,23.46]
[1745641651893,6.6184,151.03,151.01,5.80491696]
[1745641654099,6.6181,151.04,151.01,5.80491696]
[1745641654499,5.80491696,151.06,151.01,5.80491696]
[1745641654802,6.6177,151.05,151.01,12.42391696]
[1745641655994,6.618,151.04,151.01,12.42391696]
[1745641657500,6.6176,151.05,151.01,12.42391696]
[1745641660196,6.6176,151.05,151.01,5.80491696]
[1745641660393,6.6172,151.06,151.04,5.80491696]
[1745641663403,6.6175,151.05,151.04,5.80491696]
[1745641663805,29.26491696,151.08,151.04,5.80491696]
[1745641664006,6.6174,151.06,151.04,5.80491696]
[1745641667409,6.6174,151.06,151.02,5.80491696]
[1745641667908,6.6174,151.06,151.02,12.42341696]
[1745641668410,6.6174,151.06,151.03,6.6183]
[1745641674622,6.6176,151.05,151.02,12.42361696]
[1745641676217,12.42211696,151.06,151.02,5.80491696]
[1745641676523,12.42211696,151.06,151.03,6.6183]
[1745641677225,6.6167,151.07,151.04,6.6179]
[1745641677524,23.46,151.08,151.02,5.80491696]
[1745641677821,29.26491696,151.08,151.04,5.80491696]
[1745641679121,6.6169,151.07,151.04,12.42241696]
[1745641681121,6.6169,151.07,151.04,5.80491696]
[1745641682523,6.6169,151.07,151.04,12.42271696]
[1745641685828,5.80491696,151.06,151.0,5.80491696]
[1745641686024,5.80491696,151.04,151.0,5.80491696]
[1745641686228,12.42311696,151.04,151.0,6.6194]
[1745641687132,12.42311696,151.04,151.01,6.6192]
[1745641689529,12.42311696,151.04,151.0,12.42421696]
[1745641689829,6.6185,151.03,151.0,12.42421696]
[1745641690230,6.6185,151.03,151.0,5.80491696]
[1745641690829,6.6189,151.02,150.99,2.0493]
[1745641692228,6.6189,151.02,150.99,8.6694]
[1745641693029,12.42341696,151.03,150.99,8.6694]
[1745641693429,12.42341696,151.03,150.99,6.6201]
[1745641693629,6.6185,151.03,150.99,12.42501696]
[1745641695032,6.6185,151.03,151.0,6.6195]
[1745641695433,6.6185,151.03,151.0,12.42441696]
[1745641695632,30.0781,151.04,151.0,5.80491696]
[1745641695828,30.0781,151.04,151.01,5.80491696]
[1745641696033,23.46,151.04,151.01,12.42411696]
[1745641696234,23.46,151.04,151.01,5.80491696]
[1745641697232,30.0784,151.04,151.01,12.42411696]
[1745641697432,23.46,151.04,151.03,5.80491696]
[1745641697735,29.24491696,151.07,151.03,5.80491696]
[1745641698033,6.6175,151.05,151.03,5.80491696]
[1745641698630,6.6172,151.06,151.03,12.42321696]
[1745641699333,6.6172,151.06,151.03,5.80491696]
[1745641699535,30.0568,151.07,151.03,5.80491696]
[1745641699734,30.0568,151.07,151.04,5.80491696]
[1745641701033,30.0568,151.07,151.04,12.42281696]
[1745641701236,30.0568,151.07,151.04,5.80491696]
[1745641701631,6.6171,151.06,151.04,5.80491696]
[1745641702237,6.6171,151.06,151.03,12.42291696]
[1745641709040,6.6171,151.06,151.03,5.80491696]
[1745641710136,23.44,151.07,151.03,5.80491696]
[1745641710339,5.80491696,151.06,151.01,12.42411696]
[1745641710941,6.6183,151.04,151.01,12.42411696]
[1745641711239,5.80491696,151.04,151.0,5.80491696]
[1745641711541,6.6187,151.03,151.0,5.80491696]
[1745641711743,6.6187,151.03,151.0,12.42451696]
[1745641712645,6.6192,151.01,150.99,5.80491696]
[1745641712944,5.80491696,151.03,150.99,5.80491696]
[1745641713246,6.6191,151.02,150.99,5.80491696]
[1745641713447,5.80491696,151.03,150.99,5.80491696]
[1745641714445,6.6189,151.02,150.99,5.80491696]
[1745641715145,6.6195,151.01,150.99,5.80491696]
[1745641717044,6.6195,151.01,150.98,30.0805]
[1745641717250,6.6199,151.0,150.98,5.80491696]
[1745641717447,6.6199,151.0,150.97,5.80491696]
[1745641717643,5.80491696,151.0,150.95,29.3471]